fUST/lending_fUST_20250718
["ID","MTS","AMOUNT","RATE_DAILY","PERIOD"]
[372881301,1752791439432,-1017.58,0.00017597,2]
[372881302,1752791439441,-460.0,0.00017597,2]
[372881303,1752791439451,-626.49,0.00017597,2]
[372881304,1752791439460,-901.81,0.00017597,2]
[372881305,1752791439470,-465.57928394,0.00017597,2]
[372881306,1752791439480,-460.0,0.00017597,2]
[372881307,1752791439489,-3044.32,0.00017597,2]
[372881308,1752791439499,-460.0,0.00017597,2]
[372881309,1752791439510,-1223.07,0.00017597,2]
[372881310,1752791439520,-460.0,0.00017598,2]
[372881311,1752791439530,-460.0,0.00017598,2]
[372881312,1752791439540,-460.0,0.00017598,2]
[372881313,1752791439550,-460.0,0.00017598,2]
[372881314,1752791439560,-460.0,0.00017598,2]
[372881315,1752791439570,-460.0,0.00017598,2]
[372881316,1752791439580,-460.0,0.00017598,2]
[372881317,1752791439590,-460.0,0.00017598,2]
[372881319,1752791439600,-460.0,0.00017598,2]
[372881321,1752791439609,-574.67,0.00017598,2]
[372881322,1752791439619,-460.0,0.00017598,2]
[372881324,1752791439628,-538.56,0.00017598,2]
[372881326,1752791439637,-460.0,0.00017598,2]
[372881327,1752791439646,-460.0,0.00017598,2]
[372881328,1752791439656,-460.0,0.00017598,2]
[372881329,1752791439665,-460.0,0.00017598,2]
[372881330,1752791439675,-460.0,0.00017598,2]
[372881331,1752791439684,-460.0,0.00017598,2]
[372881333,1752791439694,-460.0,0.00017598,2]
[372881334,1752791439704,-460.0,0.00017598,2]
[372881335,1752791439714,-461.84,0.00017598,2]
[372881336,1752791439725,-3218.94,0.00017598,2]
[372881337,1752791439735,-460.0,0.00017598,2]
[372881338,1752791439745,-752.49,0.00017598,2]
[372881339,1752791439756,-460.0,0.00017598,2]
[372881340,1752791439766,-460.0,0.00017598,2]
[372881341,1752791439776,-460.0,0.00017598,2]
[372881342,1752791439786,-852.82,0.00017598,2]
[372881343,1752791439796,-460.0,0.00017598,2]
[372881344,1752791439805,-460.0,0.00017598,2]
[372881345,1752791439816,-151.0,0.000176,2]
[372881346,1752791439825,-460.0,0.00017601,2]
[372881347,1752791439835,-460.0,0.00017602,2]
[372881348,1752791439844,-247.99456462,0.00017621,2]
[372881349,1752791439854,-1000.0,0.00017621,2]
[372881351,1752791439864,-466.89406277,0.00017711,2]
[372881352,1752791439874,-160.0,0.00017822,2]
[372881353,1752791439883,-160.0,0.00017822,2]
[372881354,1752791439892,-160.0,0.00017834,2]
[372881355,1752791439903,-160.0,0.00017834,2]
[372881356,1752791439913,-230.85589339,0.00017834,2]
[372881357,1752791439922,-525.67742785,0.00017834,2]
[372881358,1752791439931,-476.16111942,0.00017834,2]
[372881359,1752791439941,-160.0,0.00017834,2]
[372881360,1752791439951,-160.0,0.00017834,2]
[372881361,1752791439960,-839.15451687,0.00017834,2]
[372881362,1752791439969,-160.0,0.00017834,2]
[372881363,1752791439979,-214.44804168,0.00017834,2]
[372881364,1752791440102,-215.59244943,0.00017834,2]
[372881365,1752791440119,-12607.95677342,0.00017834,2]
[372881366,1752791440131,-160.0,0.00017835,2]
[372881367,1752791440142,-160.0,0.00017835,2]
[372881368,1752791440152,-206.31974599,0.00017862,2]
[372881369,1752791440162,-1500.0,0.00017868,2]
[372881370,1752791440172,-1203.55635699,0.00017868,2]
[372881371,1752791440183,-460.0,0.00017869,2]
[372881372,1752791440193,-460.0,0.00017869,2]
[372881373,1752791440205,-1232.91,0.00017869,2]
[372881374,1752791440216,-460.0,0.0001787,2]
[372881375,1752791440226,-369.47235491,0.0001787,2]
[372881376,1752791440236,-460.0,0.0001787,2]
[372881377,1752791440246,-460.0,0.0001787,2]
[372881378,1752791440256,-460.0,0.0001787,2]
[372881379,1752791440266,-460.0,0.0001787,2]
[372881380,1752791440275,-460.0,0.0001787,2]
[372881381,1752791440285,-460.0,0.0001787,2]
[372881382,1752791440296,-198.64,0.0001787,2]
[372881383,1752791440307,-460.0,0.0001787,2]
[372881384,1752791440317,-460.0,0.0001787,2]
[372881385,1752791440327,-460.0,0.0001787,2]
[372881386,1752791440336,-2148.08,0.0001787,2]
[372881387,1752791440346,-1518.61,0.0001787,2]
[372881388,1752791440358,-493.51,0.0001787,2]
[372881389,1752791440367,-460.0,0.0001787,2]
[372881390,1752791440379,-482.4,0.0001787,2]
[372881391,1752791440390,-460.0,0.0001787,2]
[372881392,1752791440400,-460.0,0.0001787,2]
[372881393,1752791440411,-460.0,0.0001787,2]
[372881394,1752791440420,-720.78,0.0001787,2]
[372881395,1752791440430,-1521.8,0.0001787,2]
[372881396,1752791440439,-460.0,0.0001787,2]
[372881397,1752791440451,-556.21,0.0001787,2]
[372881398,1752791440461,-513.87,0.0001787,2]
[372881399,1752791440470,-460.0,0.0001787,2]
[372881400,1752791440479,-475.18521446,0.0001787,2]
[372881401,1752791440489,-460.0,0.0001787,2]
[372881402,1752791440499,-460.0,0.0001787,2]
[372881403,1752791440509,-460.0,0.0001787,2]
[372881404,1752791440519,-743.51,0.0001787,2]
[372881405,1752791440528,-643.68,0.0001787,2]
[372881406,1752791440538,-460.0,0.0001787,2]
[372881407,1752791440547,-827.97,0.0001787,2]
[372881408,1752791440556,-460.0,0.0001787,2]
[372881409,1752791440565,-491.62,0.0001787,2]
[372881410,1752791440575,-460.0,0.0001787,2]
[372881411,1752791440584,-2715.03,0.0001787,2]
[372881412,1752791440593,-460.0,0.0001787,2]
[372881413,1752791440603,-585.93,0.0001787,2]
[372881414,1752791440612,-460.0,0.0001787,2]
[372881415,1752791440622,-460.0,0.00017871,2]
[372881416,1752791440631,-460.0,0.00017871,2]
[372881417,1752791440641,-1644.73,0.00017871,2]
[372881418,1752791440650,-1017.58,0.00017871,2]
[372881419,1752791440661,-460.0,0.00017871,2]
[372881420,1752791440670,-626.49,0.00017871,2]
[372881421,1752791440680,-901.81,0.00017871,2]
[372881422,1752791440690,-460.0,0.00017871,2]
[372881423,1752791440700,-3044.32,0.00017871,2]
[372881424,1752791440709,-460.0,0.00017871,2]
[372881425,1752791440719,-1223.07,0.00017871,2]
[372881426,1752791440728,-460.0,0.00017872,2]
[372881427,1752791440738,-460.0,0.00017872,2]
[372881428,1752791440748,-460.0,0.00017872,2]
[372881429,1752791440757,-460.0,0.00017872,2]
[372881430,1752791440767,-460.0,0.00017872,2]
[372881431,1752791440777,-460.0,0.00017872,2]
[372881432,1752791440787,-574.67,0.00017872,2]
[372881433,1752791440799,-460.0,0.00017872,2]
[372881434,1752791440808,-460.0,0.00017872,2]
[372881435,1752791440818,-460.0,0.00017872,2]
[372881436,1752791440828,-460.0,0.00017872,2]
[372881437,1752791440837,-460.0,0.00017872,2]
[372881438,1752791440847,-460.0,0.00017872,2]
[372881439,1752791440856,-460.0,0.00017872,2]
[372881440,1752791440865,-460.0,0.00017872,2]
[372881441,1752791440874,-242.21955512,0.00017872,2]
[372881442,1752791440884,-461.84,0.00017872,2]
[372881443,1752791440893,-3218.94,0.00017872,2]
[372881444,1752791440902,-460.0,0.00017872,2]
[372881445,1752791440912,-752.49,0.00017872,2]
[372881446,1752791440921,-460.0,0.00017872,2]
[372881447,1752791440931,-460.0,0.00017872,2]
[372881448,1752791440941,-852.82,0.00017872,2]
[372881449,1752791440951,-460.0,0.00017872,2]
[372881450,1752791440960,-384.19,0.00017872,2]
[372881451,1752791440970,-500.0,0.00017873,2]
[372881452,1752791440980,-500.0,0.00017873,2]
[372881453,1752791440990,-500.0,0.00017873,2]
[372881454,1752791441001,-460.0,0.00017875,2]
[372881455,1752791441012,-208.99900393,0.00017876,2]
[372881456,1752791441022,-211.00153815,0.00017978,2]
[372881457,1752791441031,-22629.92545144,0.00018,2]
[372881458,1752791441040,-12694.18448564,0.00018,2]
[372881459,1752791441050,-203.39,0.00018007,2]
[372881460,1752791441059,-420.0,0.00018029,2]
[372881461,1752791441068,-460.0,0.00018143,2]
[372881462,1752791441078,-460.0,0.00018143,2]
[372881463,1752791441087,-1232.91,0.00018143,2]
[372881464,1752791441096,-460.0,0.00018144,2]
[372881465,1752791441107,-460.0,0.00018144,2]
[372881466,1752791441116,-460.0,0.00018144,2]
[372881467,1752791441126,-460.0,0.00018144,2]
[372881468,1752791441139,-460.0,0.00018144,2]
[372881469,1752791441149,-268.13040052,0.00018144,2]
[372881470,1752791441159,-460.0,0.00018144,2]
[372881471,1752791441168,-460.0,0.00018144,2]
[372881472,1752791441181,-460.0,0.00018144,2]
[372881473,1752791441191,-2148.08,0.00018144,2]
[372881474,1752791441202,-1518.61,0.00018144,2]
[372881475,1752791441212,-493.51,0.00018144,2]
[372881476,1752791441222,-460.0,0.00018144,2]
[372881477,1752791441231,-482.4,0.00018144,2]
[372881478,1752791441241,-460.0,0.00018144,2]
[372881479,1752791441250,-460.0,0.00018144,2]
[372881480,1752791441262,-460.0,0.00018144,2]
[372881481,1752791441272,-720.78,0.00018144,2]
[372881482,1752791441282,-1521.8,0.00018144,2]
[372881483,1752791441291,-460.0,0.00018144,2]
[372881484,1752791441301,-556.21,0.00018144,2]
[372881485,1752791441310,-513.87,0.00018144,2]
[372881486,1752791441319,-460.0,0.00018144,2]
[372881487,1752791441329,-460.0,0.00018144,2]
[372881488,1752791441338,-460.0,0.00018144,2]
[372881489,1752791441348,-460.0,0.00018144,2]
[372881490,1752791441357,-743.51,0.00018144,2]
[372881491,1752791441367,-643.68,0.00018144,2]
[372881492,1752791441376,-472.07011707,0.00018144,2]
[372881493,1752791441385,-827.97,0.00018144,2]
[372881494,1752791441395,-460.0,0.00018144,2]
[372881495,1752791441405,-491.62,0.00018144,2]
[372881496,1752791441414,-460.0,0.00018144,2]
[372881497,1752791441424,-2715.03,0.00018144,2]
[372881498,1752791441433,-460.0,0.00018144,2]
[372881499,1752791441443,-585.93,0.00018144,2]
[372881500,1752791441452,-460.0,0.00018144,2]
[372881501,1752791441462,-271.50452628,0.00018145,2]
[372881502,1752791441471,-1644.73,0.00018145,2]
[372881503,1752791441481,-460.0,0.00018145,2]
[372881504,1752791441490,-1017.58,0.00018145,2]
[372881505,1752791441500,-460.0,0.00018145,2]
[372881506,1752791441512,-626.49,0.00018145,2]
[372881507,1752791441521,-901.81,0.00018145,2]
[372881508,1752791441531,-386.14255745,0.00018145,2]
[372881509,1752791441540,-3044.32,0.00018145,2]
[372881510,1752791441550,-1223.07,0.00018145,2]
[372881511,1752791441559,-460.0,0.00018146,2]
[372881512,1752791441568,-460.0,0.00018146,2]
[372881513,1752791441578,-460.0,0.00018146,2]
[372881514,1752791441593,-460.0,0.00018146,2]
[372881515,1752791441609,-460.0,0.00018146,2]
[372881516,1752791441618,-574.67,0.00018146,2]
[372881517,1752791441628,-334.39343775,0.00018146,2]
[372881518,1752791441637,-460.0,0.00018146,2]
[372881519,1752791441647,-460.0,0.00018146,2]
[372881520,1752791441656,-460.0,0.00018146,2]
[372881521,1752791441665,-460.0,0.00018146,2]
[372881522,1752791441674,-460.0,0.00018146,2]
[372881523,1752791441684,-460.0,0.00018146,2]
[372881524,1752791441693,-460.0,0.00018146,2]
[372881525,1752791441703,-461.84,0.00018146,2]
[372881526,1752791441712,-3218.94,0.00018146,2]
[372881527,1752791441721,-460.0,0.00018146,2]
[372881528,1752791441731,-752.49,0.00018146,2]
[372881529,1752791441741,-460.0,0.00018146,2]
[372881530,1752791441751,-852.82,0.00018146,2]
[372881531,1752791441763,-460.0,0.00018146,2]
[372881532,1752791441772,-460.0,0.00018149,2]
[372881533,1752791441782,-1500.0,0.00018168,2]
[372881534,1752791441791,-1622.99068755,0.0001825,2]
[372881535,1752791441801,-150.0,0.00018333,2]
[372881536,1752791441811,-2000.0,0.00018416,2]
[372881537,1752791441820,-460.0,0.00018417,2]
[372881538,1752791441832,-594.84140823,0.00018417,2]
[372881539,1752791441844,-1232.91,0.00018417,2]
[372881540,1752791441853,-460.0,0.00018418,2]
[372881541,1752791441863,-460.0,0.00018418,2]
[372881542,1752791441872,-460.0,0.00018418,2]
[372881543,1752791441882,-460.0,0.00018418,2]
[372881544,1752791441892,-460.0,0.00018418,2]
[372881545,1752791441902,-407.47610719,0.00018418,2]
[372881546,1752791441911,-460.0,0.00018418,2]
[372881547,1752791441921,-460.0,0.00018418,2]
[372881548,1752791441931,-2148.08,0.00018418,2]
[372881549,1752791441944,-1518.61,0.00018418,2]
[372881550,1752791441954,-493.51,0.00018418,2]
[372881551,1752791441963,-460.0,0.00018418,2]
[372881552,1752791441972,-482.4,0.00018418,2]
[372881553,1752791441982,-460.0,0.00018418,2]
[372881554,1752791441992,-460.0,0.00018418,2]
[372881555,1752791442002,-460.0,0.00018418,2]
[372881556,1752791442013,-720.78,0.00018418,2]
[372881557,1752791442022,-1521.8,0.00018418,2]
[372881558,1752791442031,-460.0,0.00018418,2]
[372881559,1752791442040,-556.21,0.00018418,2]
[372881560,1752791442050,-513.87,0.00018418,2]
[372881561,1752791442060,-460.0,0.00018418,2]
[372881562,1752791442069,-460.0,0.00018418,2]
[372881563,1752791442079,-460.0,0.00018418,2]
[372881564,1752791442088,-452.64307895,0.00018418,2]
[372881565,1752791442098,-743.51,0.00018418,2]
[372881566,1752791442108,-643.68,0.00018418,2]
[372881567,1752791442118,-827.97,0.00018418,2]
[372881568,1752791442128,-474.71919553,0.00018418,2]
[372881569,1752791442141,-491.62,0.00018418,2]
[372881570,1752791442150,-460.0,0.00018418,2]
[372881571,1752791442160,-2715.03,0.00018418,2]
[372881572,1752791442169,-460.0,0.00018418,2]
[372881573,1752791442178,-585.93,0.00018418,2]
[372881574,1752791442188,-460.0,0.00018418,2]
[372881575,1752791442197,-460.0,0.00018419,2]
[372881576,1752791442208,-1644.73,0.00018419,2]
[372881577,1752791442219,-1017.58,0.00018419,2]
[372881578,1752791442229,-460.0,0.00018419,2]
[372881579,1752791442238,-626.49,0.00018419,2]
[372881580,1752791442248,-901.81,0.00018419,2]
[372881581,1752791442257,-3044.32,0.00018419,2]
[372881582,1752791442267,-1223.07,0.00018419,2]
[372881583,1752791442276,-460.0,0.0001842,2]
[372881584,1752791442286,-460.0,0.0001842,2]
[372881585,1752791442295,-460.0,0.0001842,2]
[372881587,1752791442304,-460.0,0.0001842,2]
[372881588,1752791442314,-463.69,0.0001842,2]
[372881589,1752791442324,-574.67,0.0001842,2]
[372881590,1752791442335,-460.0,0.0001842,2]
[372881591,1752791442344,-460.0,0.0001842,2]
[372881592,1752791442355,-460.0,0.0001842,2]
[372881593,1752791442367,-460.0,0.0001842,2]
[372881594,1752791442378,-460.0,0.0001842,2]
[372881595,1752791442388,-460.0,0.0001842,2]
[372881596,1752791442399,-460.0,0.0001842,2]
[372881597,1752791442409,-461.84,0.0001842,2]
[372881598,1752791442419,-3218.94,0.0001842,2]
[372881599,1752791442430,-460.0,0.0001842,2]
[372881600,1752791442440,-752.49,0.0001842,2]
[372881601,1752791442449,-460.0,0.0001842,2]
[372881602,1752791442459,-852.82,0.0001842,2]
[372881603,1752791442468,-460.0,0.0001842,2]
[372881605,1752791442477,-1000.0,0.00018421,2]
[372881608,1752791442487,-1000.0,0.00018421,2]
[372881611,1752791442496,-1000.0,0.00018421,2]
[372881614,1752791442505,-460.0,0.00018423,2]
[372881617,1752791442517,-151.0,0.00018434,2]
[372881619,1752791442527,-1232.91,0.00018691,2]
[372881621,1752791442536,-460.0,0.00018692,2]
[372881623,1752791442545,-460.0,0.00018692,2]
[372881625,1752791442555,-460.0,0.00018692,2]
[372881627,1752791442564,-460.0,0.00018692,2]
[372881629,1752791442573,-460.0,0.00018692,2]
[372881632,1752791442583,-460.0,0.00018692,2]
[372881634,1752791442592,-460.0,0.00018692,2]
[372881637,1752791442602,-2148.08,0.00018692,2]
[372881638,1752791442611,-1518.61,0.00018692,2]
[372881640,1752791442621,-493.51,0.00018692,2]
[372881642,1752791442630,-460.0,0.00018692,2]
[372881643,1752791442639,-482.4,0.00018692,2]
[372881644,1752791442648,-460.0,0.00018692,2]
[372881645,1752791442658,-460.0,0.00018692,2]
[372881646,1752791442667,-460.0,0.00018692,2]
[372881647,1752791442677,-720.78,0.00018692,2]
[372881648,1752791442686,-1521.8,0.00018692,2]
[372881649,1752791442696,-460.0,0.00018692,2]
[372881650,1752791442706,-556.21,0.00018692,2]
[372881651,1752791442715,-513.87,0.00018692,2]
[372881652,1752791442724,-460.0,0.00018692,2]
[372881653,1752791442734,-460.0,0.00018692,2]
[372881654,1752791442744,-348.35026998,0.00018692,2]
[372881656,1752791442754,-743.51,0.00018692,2]
[372881657,1752791442768,-643.68,0.00018692,2]
[372881658,1752791442777,-827.97,0.00018692,2]
[372881659,1752791442787,-491.62,0.00018692,2]
[372881660,1752791443008,-460.0,0.00018692,2]
[372881661,1752791443021,-2715.03,0.00018692,2]
[372881663,1752791443043,-460.0,0.00018692,2]
[372881664,1752791443053,-585.93,0.00018692,2]
[372881665,1752791443063,-460.0,0.00018692,2]
[372881666,1752791443072,-1644.73,0.00018693,2]
[372881667,1752791443082,-1017.58,0.00018693,2]
[372881668,1752791443092,-460.0,0.00018693,2]
[372881669,1752791443101,-626.49,0.00018693,2]
[372881670,1752791443111,-901.81,0.00018693,2]
[372881671,1752791443120,-3044.32,0.00018693,2]
[372881672,1752791443131,-1223.07,0.00018693,2]
[372881673,1752791443142,-460.0,0.00018694,2]
[372881674,1752791443151,-460.0,0.00018694,2]
[372881675,1752791443162,-460.0,0.00018694,2]
[372881676,1752791443278,-410.18038512,0.00018694,2]
[372881677,1752791443289,-574.67,0.00018694,2]
[372881678,1752791443299,-460.0,0.00018694,2]
[372881679,1752791443308,-460.0,0.00018694,2]
[372881680,1752791443318,-460.0,0.00018694,2]
[372881681,1752791443328,-460.0,0.00018694,2]
[372881682,1752791443337,-239.04363834,0.00018694,2]
[372881683,1752791443347,-460.0,0.00018694,2]
[372881684,1752791443357,-461.84,0.00018694,2]
[372881685,1752791443367,-3218.94,0.00018694,2]
[372881686,1752791443376,-460.0,0.00018694,2]
[372881687,1752791443386,-752.49,0.00018694,2]
[372881688,1752791443395,-460.0,0.00018694,2]
[372881689,1752791443405,-852.82,0.00018694,2]
[372881690,1752791443414,-460.0,0.00018694,2]
[372881691,1752791443423,-342.7,0.00018697,2]
[372881692,1752791443433,-151.0,0.000187,2]
[372881693,1752791443442,-151.0,0.00018705,2]
[372881694,1752791443452,-261.252075,0.00018705,2]
[372881695,1752791443462,-2000.0,0.00018716,2]
[372881696,1752791443471,-500.0,0.00018792,2]
[372881697,1752791443481,-500.0,0.00018792,2]
[372881698,1752791443491,-500.0,0.00018792,2]
[372881699,1752791443500,-160.0,0.00018834,2]
[372881700,1752791443511,-150.0,0.000189,2]
[372881701,1752791443521,-500.0,0.00018931,2]
[372881702,1752791443531,-500.0,0.00018931,2]
[372881703,1752791443541,-2500.0,0.00018964,2]
[372881704,1752791443552,-1232.91,0.00018965,2]
[372881705,1752791443562,-435.24,0.00018966,2]
[372881706,1752791443573,-460.0,0.00018966,2]
[372881707,1752791443582,-460.0,0.00018966,2]
[372881708,1752791443593,-460.0,0.00018966,2]
[372881709,1752791443603,-2148.08,0.00018966,2]
[372881710,1752791443612,-1518.61,0.00018966,2]
[372881711,1752791443622,-493.51,0.00018966,2]
[372881712,1752791443630,-460.0,0.00018966,2]
[372881713,1752791443640,-482.4,0.00018966,2]
[372881714,1752791443649,-460.0,0.00018966,2]
[372881715,1752791443659,-460.0,0.00018966,2]
[372881716,1752791443668,-460.0,0.00018966,2]
[372881717,1752791443678,-720.78,0.00018966,2]
[372881718,1752791443688,-1521.8,0.00018966,2]
[372881719,1752791443697,-460.0,0.00018966,2]
[372881720,1752791443707,-556.21,0.00018966,2]
[372881721,1752791443716,-513.87,0.00018966,2]
[372881722,1752791443726,-460.0,0.00018966,2]
[372881723,1752791443735,-460.0,0.00018966,2]
[372881724,1752791443744,-743.51,0.00018966,2]
[372881725,1752791443754,-643.68,0.00018966,2]
[372881726,1752791443765,-827.97,0.00018966,2]
[372881727,1752791443775,-491.62,0.00018966,2]
[372881728,1752791443785,-460.0,0.00018966,2]
[372881729,1752791443795,-2715.03,0.00018966,2]
[372881730,1752791443804,-460.0,0.00018966,2]
[372881731,1752791443813,-585.93,0.00018966,2]
[372881732,1752791443823,-460.0,0.00018966,2]
[372881733,1752791443832,-1644.73,0.00018967,2]
[372881734,1752791443842,-1017.58,0.00018967,2]
[372881735,1752791443851,-460.0,0.00018967,2]
[372881736,1752791443861,-626.49,0.00018967,2]
[372881737,1752791443870,-901.81,0.00018967,2]
[372881738,1752791443880,-3044.32,0.00018967,2]
[372881739,1752791443890,-1223.07,0.00018967,2]
[372881740,1752791443899,-460.0,0.00018968,2]
[372881741,1752791443909,-460.0,0.00018968,2]
[372881742,1752791443918,-460.0,0.00018968,2]
[372881743,1752791443928,-574.67,0.00018968,2]
[372881744,1752791443937,-460.0,0.00018968,2]
[372881745,1752791443946,-460.0,0.00018968,2]
[372881746,1752791443956,-363.654998,0.00018968,2]
[372881747,1752791443966,-460.0,0.00018968,2]
[372881748,1752791443976,-460.0,0.00018968,2]
[372881749,1752791443986,-461.84,0.00018968,2]
[372881750,1752791443995,-3218.94,0.00018968,2]
[372881751,1752791444005,-460.0,0.00018968,2]
[372881752,1752791444017,-752.49,0.00018968,2]
[372881753,1752791444027,-460.0,0.00018968,2]
[372881754,1752791444036,-852.82,0.00018968,2]
[372881755,1752791444046,-460.0,0.00018968,2]
[372881756,1752791444056,-500.0,0.00018968,2]
[372881757,1752791444066,-502.33311944,0.00018968,2]
[372881758,1752791444075,-1025.15971395,0.00018968,2]
[372881759,1752791444084,-1500.0,0.00018968,2]
[372881760,1752791444094,-1500.0,0.00018968,2]
[372881761,1752791444103,-151.0,0.0001898,2]
[372881762,1752791444113,-466.89406277,0.0001902,2]
[372881763,1752791444122,-500.0,0.00019083,2]
[372881764,1752791444135,-500.0,0.00019083,2]
[372881765,1752791444144,-172.021611,0.00019178,2]
[372881766,1752791444153,-666.0,0.00019178,2]
[372881767,1752791444163,-1232.91,0.00019239,2]
[372881768,1752791444174,-460.0,0.0001924,2]
[372881769,1752791444183,-460.0,0.0001924,2]
[372881770,1752791444193,-2148.08,0.0001924,2]
[372881771,1752791444203,-1518.61,0.0001924,2]
[372881772,1752791444214,-493.51,0.0001924,2]
[372881773,1752791444223,-460.0,0.0001924,2]
[372881774,1752791444233,-482.4,0.0001924,2]
[372881775,1752791444242,-460.0,0.0001924,2]
[372881776,1752791444252,-460.0,0.0001924,2]
[372881777,1752791444264,-460.0,0.0001924,2]
[372881778,1752791444273,-720.78,0.0001924,2]
[372881779,1752791444284,-1521.8,0.0001924,2]
[372881780,1752791444293,-460.0,0.0001924,2]
[372881781,1752791444304,-556.21,0.0001924,2]
[372881782,1752791444314,-513.87,0.0001924,2]
[372881783,1752791444323,-460.0,0.0001924,2]
[372881784,1752791444332,-460.0,0.0001924,2]
[372881785,1752791444342,-743.51,0.0001924,2]
[372881786,1752791444352,-643.68,0.0001924,2]
[372881787,1752791444364,-827.97,0.0001924,2]
[372881788,1752791444373,-491.62,0.0001924,2]
[372881789,1752791444382,-460.0,0.0001924,2]
[372881790,1752791444391,-2715.03,0.0001924,2]
[372881791,1752791444402,-460.0,0.0001924,2]
[372881792,1752791444411,-585.93,0.0001924,2]
[372881793,1752791444420,-460.0,0.0001924,2]
[372881794,1752791444429,-1644.73,0.00019241,2]
[372881795,1752791444438,-1017.58,0.00019241,2]
[372881796,1752791444448,-460.0,0.00019241,2]
[372881797,1752791444458,-626.49,0.00019241,2]
[372881798,1752791444467,-901.81,0.00019241,2]
[372881799,1752791444477,-3044.32,0.00019241,2]
[372881800,1752791444486,-1223.07,0.00019241,2]
[372881801,1752791444497,-460.0,0.00019242,2]
[372881802,1752791444507,-426.12602412,0.00019242,2]
[372881803,1752791444517,-460.0,0.00019242,2]
[372881804,1752791444527,-574.67,0.00019242,2]
[372881805,1752791444536,-460.0,0.00019242,2]
[372881806,1752791444546,-460.0,0.00019242,2]
[372881807,1752791444555,-460.0,0.00019242,2]
[372881808,1752791444564,-461.84,0.00019242,2]
[372881809,1752791444573,-3218.94,0.00019242,2]
[372881810,1752791444583,-460.0,0.00019242,2]
[372881811,1752791444593,-752.49,0.00019242,2]
[372881812,1752791444602,-460.0,0.00019242,2]
[372881813,1752791444612,-852.82,0.00019242,2]
[372881814,1752791444622,-460.0,0.00019242,2]
[372881815,1752791444632,-297.45462002,0.00019264,2]
[372881816,1752791444641,-151.0,0.00019329,2]
[372881817,1752791444650,-1000.0,0.0001934,2]
[372881818,1752791444660,-500.0,0.0001934,2]
[372881819,1752791444670,-284.28485267,0.00019343,2]
[372881820,1752791444679,-260.0,0.00019382,2]
[372881821,1752791444689,-947.855061,0.00019479,2]
[372881822,1752791444699,-3000.0,0.00019512,2]
[372881823,1752791444708,-1232.91,0.00019513,2]
[372881824,1752791444718,-3083.62420748,0.00019514,2]
[372881825,1752791444727,-460.0,0.00019514,2]
[372881826,1752791444736,-2148.08,0.00019514,2]
[372881827,1752791444745,-1518.61,0.00019514,2]
[372881828,1752791444754,-493.51,0.00019514,2]
[372881829,1752791444764,-460.0,0.00019514,2]
[372881830,1752791444773,-482.4,0.00019514,2]
[372881831,1752791444783,-460.0,0.00019514,2]